fUST/lending_fUST_20240209
["ID","MTS","AMOUNT","RATE_DAILY","PERIOD"]
[313597920,1707445838621,-500.0,0.00024999,2]
[313597921,1707445838630,-500.0,0.00024999,2]
[313597922,1707445838640,-358.98767322,0.00024999,2]
[313597951,1707445844052,-2495.45301095,0.0002499,3]
[313597975,1707445848249,-465.19676197,0.0002499,3]
[313598025,1707445848871,-475.38022708,0.0002499,3]
[313598027,1707445848882,-503.55285649,0.00024998,2]
[313598029,1707445848891,-141.01232678,0.00024999,2]
[313598031,1707445848900,-500.0,0.00024999,2]
[313598033,1707445848910,-590.53,0.00024999,2]
[313598035,1707445848919,-500.0,0.00024999,2]
[313598038,1707445848929,-4876.12567865,0.00024999,2]
[313598300,1707446884458,499.73,0.000175,2]
[313598388,1707447035394,-1746.18903205,0.00022432,2]
[313598390,1707447035404,-4496.73960399,0.00022433,2]
[313598392,1707447035414,-1032.36645246,0.00022434,3]
[313598394,1707447035424,-1291.18671477,0.00022435,2]
[313598396,1707447035434,-166.666666,0.00022458,2]
[313598398,1707447035443,-435.3958479,0.00022517,2]
[313598400,1707447035453,-871.83461644,0.00022899,2]
[313598403,1707447035463,-592.9693191,0.00024,2]
[313598406,1707447035473,-543.04922203,0.00024442,2]
[313598409,1707447035482,-1773.31721658,0.00024444,4]
[313598413,1707447035494,-8142.92472702,0.00024444,4]
[313598598,1707447043649,-177.04665461,0.00022432,2]
[313598599,1707447043659,-892.94108543,0.00024444,4]
[313598600,1707447043671,-23251.90254499,0.00024444,4]
[313598601,1707447043683,-4867.24669837,0.00024444,4]
[313598602,1707447043706,-416.37999994,0.00024444,4]
[313598632,1707447048045,-325.14926692,0.00024443,2]
[313598634,1707447048054,-539.60063308,0.00024443,2]
[313598744,1707447493838,164.04462009,0.00017499,2]
[313598748,1707447729057,569.80756557,0.000175,2]
[313598779,1707447976868,498.5816199,0.000175,2]
[313598794,1707448112028,31145.50763978,0.000175,2]
[313598797,1707448190037,184679.76339341,0.000175,2]
[313598798,1707448208037,43203.64982248,0.000175,2]
[313598896,1707448234864,-155.108576,0.00017565,2]
[313598897,1707448234873,-901.52108006,0.00017566,3]
[313598898,1707448234885,-130.8453724,0.00017566,3]
[313598899,1707448234894,-718.30431836,0.00017567,2]
[313598900,1707448234903,-2384.64476439,0.00017568,2]
[313598901,1707448234912,-4496.73960399,0.00017568,2]
[313598902,1707448234922,-18962.14553728,0.00017569,2]
[313598903,1707448234932,-156.2806939,0.000176,2]
[313598904,1707448234942,-200.0,0.00019329,2]
[313598905,1707448234951,-1291.18671477,0.0002,2]
[313598906,1707448234961,-9375.6863688,0.00021178,2]
[313598907,1707448234970,-280.0,0.00021262,7]
[313598908,1707448234979,-436.25891736,0.00021796,2]
[313598909,1707448234988,-1059.01786784,0.00021894,2]
[313598910,1707448235000,-155.07909034,0.00021896,2]
[313598911,1707448235010,-168.230786,0.00021918,2]
[313598912,1707448235019,-3088.16543399,0.00021997,2]
[313598913,1707448235029,-155.07909034,0.00021998,4]
[313598914,1707448235039,-156.00156511,0.00021998,2]
[313598915,1707448235049,-294.40214372,0.00022,4]
[313598916,1707448235062,-802.49499083,0.00022344,2]
[313598917,1707448235072,-391.0,0.00023388,7]
[313598918,1707448235081,-224.52,0.00023466,4]
[313598919,1707448235091,-224.52,0.00023466,4]
[313598920,1707448235100,-224.52,0.00023466,4]
[313598921,1707448235109,-224.521,0.00023466,4]
[313598922,1707448235119,-224.521,0.00023466,4]
[313598923,1707448235128,-592.9693191,0.00024,2]
[313598924,1707448235137,-436.25891736,0.00024382,2]
[313598925,1707448235148,-398.26172498,0.00024442,2]
[313598926,1707448235157,-155.08840039,0.00024442,2]
[313598927,1707448235166,-155.27136807,0.00024442,2]
[313598928,1707448235176,-217.5651034,0.00024443,2]
[313598929,1707448235185,-840.17468641,0.00024443,2]
[313598930,1707448235195,-1832.17488523,0.00024443,2]
[313598931,1707448235205,-2733.60402565,0.00024443,2]
[313598932,1707448235301,-300.0,0.00024443,2]
[313598933,1707448235311,-11339.41280168,0.00024444,4]
[313598934,1707448235321,-168.230786,0.00024482,2]
[313598935,1707448235331,-164.04462008,0.00024555,2]
[313598936,1707448235340,-461.23726915,0.00024557,2]
[313598937,1707448235350,-1260.6636902,0.00024558,2]
[313598938,1707448235359,-151.0,0.00024635,2]
[313598939,1707448235369,-5416.04,0.00024645,3]
[313598940,1707448235378,-1439.11404638,0.00024655,2]
[313598941,1707448235387,-312.24878182,0.00024655,2]
[313598952,1707448239611,-1339.31399814,0.00024647,3]
[313598953,1707448239667,-3174.04600186,0.00024647,3]
[313598954,1707448239676,-774.62215566,0.00024655,2]
[313598955,1707448239686,-295.73444606,0.00024655,2]
[313598956,1707448239695,-653.54472574,0.00024655,2]
[313598957,1707448239703,-103.60226754,0.00024655,2]
[313598958,1707448239715,-1526.11327591,0.00024655,2]
[313598959,1707448239727,-462.50632125,0.00024655,2]
[313599018,1707448245026,-3182.58600186,0.00024655,2]
[313599070,1707448249271,-257.16650005,0.00024557,2]
[313599071,1707448249283,-6700.09183208,0.00024557,2]
[313599072,1707448249304,-2344.46290575,0.00024557,2]
[313599073,1707448260075,1407.901217,0.000175,2]
[313599074,1707448262136,155.55684789,0.000175,2]
[313599077,1707448361297,2662.62860818,0.00026101,30]
[313599099,1707449204275,24900.0,0.00017253,2]
[313599109,1707449287407,239.612224,0.00027397,120]
[313599122,1707449329182,231.9653678,0.00016905,2]
[313599138,1707449393643,1509.13578139,0.00017313,2]
[313599207,1707449432790,-432.62813065,0.00017745,2]
[313599209,1707449432799,-155.10236756,0.00017843,2]
[313599211,1707449432808,-243.89592339,0.00017844,2]
[313599213,1707449432817,-295.85372931,0.00017844,2]
[313599215,1707449432827,-4181.39477595,0.00017845,2]
[313599217,1707449432835,-590.26002597,0.00017845,2]
[313599219,1707449432844,-36688.99046537,0.00017845,2]
[313599221,1707449432857,-47264.34083508,0.00017845,2]
[313599223,1707449432866,-563.32935938,0.00017845,2]
[313599225,1707449432875,-718.30431836,0.00017846,2]
[313599227,1707449432883,-4496.73960399,0.00017846,2]
[313599230,1707449432893,-19142.49081354,0.00017846,2]
[313599232,1707449432902,-1474.86078193,0.00017847,2]
[313599234,1707449432911,-2823.1509297,0.00017847,2]
[313599236,1707449432920,-1297.69513983,0.00017847,2]
[313599238,1707449432930,-18962.14553728,0.00017847,2]
[313599240,1707449432938,-155.10236756,0.00017847,2]
[313599241,1707449432949,-155.10236756,0.00017848,2]
[313599244,1707449432958,-330.63590163,0.00017848,2]
[313599246,1707449432967,-1032.36645246,0.00017848,3]
[313599248,1707449432978,-155.10236756,0.00017849,2]
[313599250,1707449432987,-1324.80264688,0.00017849,2]
[313599252,1707449432996,-20963.39991854,0.00017849,2]
[313599254,1707449433005,-167.36274851,0.0001785,2]
[313599256,1707449433016,-19926.02124891,0.0001785,2]
[313599258,1707449433026,-20929.45735728,0.0001785,2]
[313599260,1707449433035,-1910.05438634,0.0001785,2]
[313599261,1707449433045,-1046.85048878,0.00017858,2]
[313599264,1707449433055,-453.55708389,0.00017951,2]
[313599266,1707449433065,-990.70797991,0.00017951,2]
[313599267,1707449433076,-167.48115299,0.00017951,2]
[313599269,1707449433085,-216.65834909,0.00017951,2]
[313599271,1707449433094,-15966.46856301,0.00017951,2]
[313599274,1707449433104,-902.09419003,0.00017951,2]
[313599276,1707449433113,-279.5603845,0.00017951,2]
[313599277,1707449433122,-161.88990574,0.00017951,2]
[313599280,1707449433132,-2118.06180242,0.00017952,2]
[313599282,1707449433142,-175.43157375,0.00017952,2]
[313599283,1707449433151,-1437.98579792,0.00017953,2]
[313599285,1707449433160,-5855.36083987,0.00018,2]
[313599288,1707449433170,-151.0,0.00018723,2]
[313599289,1707449433179,-649.24704123,0.00018906,2]
[313599291,1707449433188,-151.0,0.00019494,2]
[313599294,1707449433198,-1046.85048875,0.00019508,2]
[313599295,1707449433207,-200.0,0.00019638,2]
[313599297,1707449433216,-820.60094681,0.00019997,2]
[313599299,1707449433225,-1438.30188026,0.0002,2]
[313599301,1707449433234,-1291.18671477,0.0002,2]
[313599303,1707449433242,-1202.14018038,0.0002,2]
[313599305,1707449433251,-6322.58381113,0.0002,2]
[313599307,1707449433261,-296.832737,0.0002,2]
[313599308,1707449433270,-296.832737,0.0002,2]
[313599310,1707449433279,-345.502629,0.0002,2]
[313599312,1707449433288,-345.502629,0.0002,2]
[313599316,1707449433407,-741.66958363,0.0002,2]
[313599317,1707449433420,-155.78078699,0.0002,2]
[313599318,1707449433430,-151.0,0.00020265,2]
[313599319,1707449433439,-432.62813063,0.0002091,2]
[313599320,1707449433450,-151.0,0.00021036,2]
[313599321,1707449433461,-1046.85048875,0.00021158,2]
[313599322,1707449433470,-280.0,0.00021602,7]
[313599323,1707449433479,-151.0,0.00021807,2]
[313599324,1707449433489,-169.710996,0.00021918,2]
[313599325,1707449433499,-402.92908866,0.00021918,2]
[313599326,1707449433508,-427.41735822,0.00022,2]
[313599327,1707449433517,-294.40214372,0.00022,4]
[313599328,1707449433528,-1319.0918321,0.00022344,2]
[313599329,1707449433537,-151.0,0.00022578,2]
[313599330,1707449433547,-1046.85048875,0.00022807,2]
[313599331,1707449433556,-169.710996,0.000232,2]
[313599332,1707449433565,-151.0,0.00023349,2]
[313599333,1707449433575,-391.0,0.00023762,7]
[313599334,1707449433585,-4040.85811813,0.00024,2]
[313599335,1707449433594,-592.9693191,0.00024,2]
[313599336,1707449433603,-296.832737,0.00024,2]
[313599337,1707449433613,-296.832737,0.00024,2]
[313599338,1707449433622,-345.502629,0.00024,2]
[313599339,1707449433632,-345.502629,0.00024,2]
[313599340,1707449433641,-151.0,0.00024,2]
[313599341,1707449433650,-151.0,0.00024,2]
[313599342,1707449433659,-154.911116,0.00024,2]
[313599343,1707449433669,-151.0,0.00024,2]
[313599344,1707449433679,-153.7073365,0.0002411,2]
[313599345,1707449433690,-151.0,0.00024119,2]
[313599346,1707449433700,-296.832737,0.00024405,2]
[313599347,1707449433709,-296.832737,0.00024405,2]
[313599348,1707449433719,-345.502629,0.00024405,2]
[313599349,1707449433728,-345.502629,0.00024405,2]
[313599350,1707449433738,-151.0,0.00024405,2]
[313599351,1707449433747,-151.0,0.00024405,2]
[313599352,1707449433755,-155.45691459,0.00024405,2]
[313599353,1707449433765,-155.61005332,0.00024405,2]
[313599354,1707449433774,-155.71767531,0.00024405,2]
[313599355,1707449433783,-156.89297198,0.00024405,2]
[313599356,1707449433792,-176.03211544,0.00024405,2]
[313599357,1707449433801,-1280.47069751,0.00024405,2]
[313599358,1707449433811,-396.93619987,0.00024405,2]
[313599359,1707449433820,-685.68396174,0.00024405,2]
[313599360,1707449433830,-156.86126676,0.00024405,2]
[313599361,1707449433839,-1505.81801465,0.00024405,3]
[313599362,1707449433848,-156.45539753,0.00024405,2]
[313599363,1707449433857,-7690.60759225,0.00024405,2]
[313599364,1707449433866,-10004.23255736,0.00024406,2]
[313599365,1707449433875,-296.832737,0.00024407,2]
[313599366,1707449433884,-296.832737,0.00024407,2]
[313599367,1707449433893,-296.832737,0.00024407,2]
[313599368,1707449433903,-296.832737,0.00024407,2]
[313599369,1707449433913,-345.502629,0.00024407,2]
[313599370,1707449433922,-345.502629,0.00024407,2]
[313599371,1707449433933,-345.502629,0.00024407,2]
[313599372,1707449433944,-345.502629,0.00024407,2]
[313599373,1707449433954,-151.0,0.00024407,2]
[313599374,1707449433965,-151.0,0.00024407,2]
[313599375,1707449433975,-151.0,0.00024407,2]
[313599376,1707449433985,-151.0,0.00024407,2]
[313599377,1707449433994,-301.01750231,0.00024407,2]
[313599378,1707449434003,-270.50537204,0.00024407,2]
[313599379,1707449434012,-500.0,0.00024407,2]
[313599380,1707449434022,-500.0,0.00024407,2]
[313599381,1707449434032,-500.0,0.00024407,2]
[313599382,1707449434041,-359.8873772,0.00024407,2]
[313599383,1707449434050,-500.0,0.00024407,2]
[313599384,1707449434059,-500.0,0.00024407,2]
[313599385,1707449434068,-500.0,0.00024407,2]
[313599386,1707449434078,-219.79893566,0.00024407,2]
[313599387,1707449434088,-500.0,0.00024407,2]
[313599388,1707449434098,-500.03207274,0.00024407,2]
[313599389,1707449434107,-362.59630271,0.00024407,2]
[313599390,1707449434116,-500.0,0.00024407,2]
[313599391,1707449434125,-500.0,0.00024407,2]
[313599392,1707449434135,-500.0,0.00024407,2]
[313599393,1707449434144,-500.0,0.00024407,2]
[313599394,1707449434153,-500.0,0.00024407,2]
[313599395,1707449434162,-500.0,0.00024407,2]
[313599396,1707449434171,-500.0,0.00024407,2]
[313599397,1707449434180,-500.0,0.00024407,2]
[313599398,1707449434189,-500.0,0.00024407,2]
[313599399,1707449434198,-500.0,0.00024407,2]
[313599400,1707449434207,-263.36672433,0.00024407,2]
[313599401,1707449434216,-500.0,0.00024407,2]
[313599402,1707449434225,-500.0,0.00024407,2]
[313599403,1707449434234,-500.0,0.00024407,2]
[313599404,1707449434243,-296.832737,0.00024408,2]
[313599405,1707449434252,-296.832737,0.00024408,2]
[313599406,1707449434261,-345.502629,0.00024408,2]
[313599407,1707449434270,-345.502629,0.00024408,2]
[313599408,1707449434279,-269.227818,0.00024408,2]
[313599409,1707449434288,-151.0,0.00024408,2]
[313599410,1707449434297,-1046.85048875,0.00024457,2]
[313599411,1707449434306,-1134.59732118,0.00024463,2]
[313599412,1707449434315,-169.710996,0.00024482,2]
[313599413,1707449434325,-284.95703292,0.00024555,2]
[313599414,1707449434334,-169556.53423842,0.00024557,2]
[313599415,1707449434344,-21141.89197977,0.00024557,2]
[313599416,1707449434354,-296.832737,0.00024557,2]
[313599417,1707449434363,-296.832737,0.00024557,2]
[313599418,1707449434377,-345.502629,0.00024557,2]
[313599419,1707449434386,-345.502629,0.00024557,2]
[313599420,1707449434395,-151.0,0.00024557,2]
[313599421,1707449434404,-50000.0,0.00024563,2]
[313599422,1707449434413,-296.832737,0.00024563,2]
[313599423,1707449434422,-296.832737,0.00024563,2]
[313599424,1707449434431,-345.502629,0.00024563,2]
[313599425,1707449434440,-345.502629,0.00024563,2]
[313599426,1707449434451,-184.01529,0.00024563,2]
[313599427,1707449434461,-1556.32323842,0.00024655,2]
[313599428,1707449434470,-218.06808199,0.00024655,2]
[313599429,1707449434479,-155.48919854,0.00024655,2]
[313599430,1707449434488,-500.53712975,0.00024657,2]
[313599431,1707449434497,-500.0,0.00024657,2]
[313599432,1707449434507,-500.0,0.00024657,2]
[313599433,1707449434516,-500.0,0.00024657,2]
[313599434,1707449434524,-500.0,0.00024657,2]
[313599435,1707449434534,-500.0,0.00024657,2]
[313599436,1707449434543,-539.19050922,0.00024657,2]
[313599437,1707449434552,-154.20793716,0.00024657,2]
[313599438,1707449434561,-500.0,0.00024657,2]
[313599439,1707449434570,-514.87423563,0.00024657,2]
[313599440,1707449434580,-500.0,0.00024657,2]
[313599441,1707449434589,-521.35614295,0.00024657,2]
[313599442,1707449434598,-536.45719266,0.00024657,2]
[313599443,1707449434607,-500.0,0.00024657,2]
[313599444,1707449434617,-517.84513409,0.00024657,2]
[313599445,1707449434626,-298.16540663,0.00024657,2]
[313599446,1707449434636,-598.13192562,0.00024657,2]
[313599447,1707449434645,-500.0,0.00024657,2]
[313599448,1707449434654,-476.57023133,0.00024657,2]
[313599449,1707449434663,-500.0,0.00024657,2]
[313599450,1707449434673,-500.0,0.00024657,2]
[313599451,1707449434682,-500.0,0.00024657,2]
[313599452,1707449434691,-500.0,0.00024657,2]
[313599453,1707449434700,-500.0,0.00024657,2]
[313599454,1707449434709,-500.0,0.00024657,2]
[313599455,1707449434718,-616.45199507,0.00024657,2]
[313599456,1707449434727,-500.0,0.00024657,2]
[313599457,1707449434737,-500.0,0.00024657,2]
[313599458,1707449434746,-500.0,0.00024657,2]
[313599459,1707449434755,-500.0,0.00024657,2]
[313599460,1707449434765,-500.0,0.00024657,2]
[313599461,1707449434774,-500.0,0.00024657,2]
[313599462,1707449434783,-505.95083595,0.00024657,2]
[313599463,1707449434793,-500.0,0.00024657,2]
[313599464,1707449434801,-500.0,0.00024657,2]
[313599465,1707449434810,-1237.89,0.00024657,2]
[313599466,1707449434819,-519.18241306,0.00024657,2]
[313599467,1707449434830,-500.0,0.00024657,2]
[313599468,1707449434839,-203.0967607,0.00024657,2]
[313599469,1707449434848,-479.37510183,0.00024657,2]
[313599470,1707449434858,-500.0,0.00024657,2]
[313599471,1707449434867,-500.0,0.00024657,2]
[313599472,1707449434876,-500.0,0.00024657,2]
[313599473,1707449434886,-500.0,0.00024657,2]
[313599474,1707449434895,-500.0,0.00024657,2]
[313599475,1707449434904,-514.78115327,0.00024657,2]
[313599476,1707449434913,-500.0,0.00024657,2]
[313599477,1707449434923,-500.0,0.00024657,2]
[313599478,1707449434932,-518.37606409,0.00024657,2]
[313599479,1707449434941,-533.35924861,0.00024657,2]
[313599480,1707449434950,-500.0,0.00024657,2]
[313599481,1707449434958,-500.0,0.00024657,2]
[313599482,1707449434968,-500.0,0.00024657,2]
[313599483,1707449434977,-500.0,0.00024657,2]
[313599484,1707449434986,-500.0,0.00024657,2]
[313599485,1707449434995,-500.0,0.00024657,2]
[313599486,1707449435004,-500.0,0.00024657,2]
[313599487,1707449435014,-500.0,0.00024657,2]
[313599488,1707449435023,-500.0,0.00024657,2]
[313599489,1707449435032,-537.6191818,0.00024657,2]
[313599490,1707449435042,-501.94935848,0.00024657,2]
[313599491,1707449435051,-500.0,0.00024657,2]
[313599492,1707449435060,-500.0,0.00024657,2]
[313599493,1707449435070,-512.13579375,0.00024657,2]
[313599494,1707449435079,-500.0,0.00024657,2]
[313599495,1707449435088,-185.54639467,0.00024657,2]
[313599496,1707449435098,-568.91111888,0.00024657,2]
[313599497,1707449435107,-304.0622923,0.00024657,2]
[313599498,1707449435117,-500.0,0.00024657,2]
[313599499,1707449435126,-500.0,0.00024657,2]
[313599500,1707449435136,-165.28776093,0.00024657,2]
[313599501,1707449435145,-500.0,0.00024657,2]
[313599502,1707449435155,-500.0,0.00024657,2]
[313599503,1707449435164,-500.0,0.00024657,2]
[313599504,1707449435174,-500.0,0.00024657,2]
[313599505,1707449435184,-519.64420994,0.00024657,2]
[313599506,1707449435193,-463.48796373,0.00024657,2]
[313599507,1707449435202,-500.0,0.00024657,2]
[313599508,1707449435211,-500.0,0.00024657,2]
[313599509,1707449435221,-500.0,0.00024657,2]
[313599510,1707449435230,-325.77556447,0.00024657,2]
[313599511,1707449435240,-501.62684765,0.00024657,2]
[313599512,1707449435249,-508.19774744,0.00024657,2]
[313599513,1707449435258,-500.0,0.00024657,2]
[313599514,1707449435268,-500.0,0.00024657,2]
[313599515,1707449435277,-500.0,0.00024657,2]
[313599516,1707449435286,-329.03624844,0.00024657,2]
[313599517,1707449435295,-500.0,0.00024657,2]
[313599518,1707449435305,-500.0,0.00024657,2]
[313599519,1707449435392,-502.2563578,0.00024657,2]
[313599520,1707449435402,-1215.06,0.00024657,2]
[313599521,1707449435412,-500.0,0.00024657,2]
[313599522,1707449435422,-500.0,0.00024657,2]
[313599523,1707449435431,-500.0,0.00024657,2]
[313599524,1707449435441,-554.00113739,0.00024657,2]
[313599525,1707449435452,-500.0,0.00024657,2]
[313599526,1707449435461,-500.0,0.00024657,2]
[313599527,1707449435470,-500.0,0.00024657,2]
[313599528,1707449435479,-500.0,0.00024657,2]
[313599529,1707449435489,-486.77498814,0.00024657,2]
[313599530,1707449435499,-500.0,0.00024657,2]
[313599531,1707449435508,-500.0,0.00024657,2]
[313599532,1707449435518,-511.98319598,0.00024657,2]
[313599533,1707449435527,-500.0,0.00024657,2]
[313599534,1707449435536,-500.0,0.00024657,2]
[313599535,1707449435546,-186.55098717,0.00024657,2]
[313599536,1707449435555,-500.0,0.00024657,2]
[313599537,1707449435564,-500.0,0.00024657,2]
[313599538,1707449435574,-500.0,0.00024657,2]
[313599539,1707449435584,-504.64420213,0.00024657,2]
[313599540,1707449435594,-500.0,0.00024657,2]
[313599541,1707449435604,-511.69581219,0.00024657,2]
[313599542,1707449435613,-500.0,0.00024657,2]
[313599543,1707449435623,-300.0,0.00024657,2]
[313599544,1707449435633,-636.8005741,0.00024657,2]
[313599545,1707449435642,-474.55420342,0.00024657,2]
[313599546,1707449435652,-220.09364356,0.00024657,2]
[313599547,1707449435661,-515.65188428,0.00024657,2]
[313599548,1707449435670,-500.0,0.00024657,2]
[313599549,1707449435679,-500.0,0.00024657,2]
[313599550,1707449435689,-209.43690503,0.00024657,2]
[313599551,1707449435698,-499.00743818,0.00024657,2]
[313599552,1707449435707,-605.18893686,0.00024657,2]
[313599553,1707449435717,-500.0,0.00024657,2]
[313599554,1707449435726,-500.0,0.00024657,2]
[313599555,1707449435735,-500.0,0.00024657,2]
[313599556,1707449435744,-558.08990524,0.00024657,2]
[313599557,1707449435754,-500.0,0.00024657,2]
[313599558,1707449435764,-452.17203677,0.00024657,2]
[313599559,1707449435773,-527.79293524,0.00024657,2]
[313599560,1707449435782,-510.97516848,0.00024657,2]
[313599561,1707449435792,-500.0,0.00024657,2]
[313599562,1707449435802,-506.22923825,0.00024657,2]
[313599563,1707449435811,-500.0,0.00024657,2]
[313599564,1707449435820,-275.24701902,0.00024657,2]
[313599565,1707449435831,-500.0,0.00024657,2]
[313599566,1707449435840,-500.0,0.00024657,2]
[313599567,1707449435850,-599.69449967,0.00024657,2]
[313599568,1707449435859,-500.0,0.00024657,2]
[313599569,1707449435868,-500.0,0.00024657,2]
[313599570,1707449435877,-500.0,0.00024657,2]
[313599571,1707449435887,-500.0,0.00024657,2]
[313599572,1707449435896,-512.64632921,0.00024657,2]
[313599573,1707449435906,-512.53730524,0.00024657,2]
[313599574,1707449435916,-500.0,0.00024657,2]
[313599575,1707449435925,-459.25673924,0.00024657,2]
[313599576,1707449435934,-500.0,0.00024657,2]
[313599577,1707449435944,-500.0,0.00024657,2]
[313599578,1707449435953,-500.0,0.00024657,2]
[313599579,1707449435963,-500.0,0.00024657,2]
[313599580,1707449435972,-500.0,0.00024657,2]
[313599581,1707449435981,-500.0,0.00024657,2]
[313599582,1707449435990,-500.0,0.00024657,2]
[313599583,1707449436000,-500.0,0.00024657,2]
[313599584,1707449436010,-523.27985933,0.00024657,2]
[313599585,1707449436019,-500.0,0.00024657,2]
[313599586,1707449436029,-296.832737,0.00024657,2]
[313599587,1707449436038,-296.832737,0.00024657,2]
[313599588,1707449436047,-296.832737,0.00024657,2]
[313599589,1707449436056,-296.832728,0.00024657,2]
[313599590,1707449436066,-200.0,0.00024657,2]
[313599591,1707449436075,-500.0,0.00024657,2]
[313599592,1707449436085,-244.07150901,0.00024657,2]
[313599593,1707449436094,-500.0,0.00024657,2]
[313599594,1707449436104,-506.85903267,0.00024657,2]
[313599595,1707449436113,-558.89610838,0.00024657,2]
[313599596,1707449436123,-480.4601243,0.00024657,2]
[313599597,1707449436132,-500.0,0.00024657,2]
[313599598,1707449436141,-207.82530741,0.00024657,2]
[313599599,1707449436150,-500.0,0.00024657,2]
[313599600,1707449436160,-365.91191936,0.00024657,2]
[313599601,1707449436169,-500.0,0.00024657,2]
[313599602,1707449436178,-500.0,0.00024657,2]
[313599603,1707449436187,-500.0,0.00024657,2]
[313599604,1707449436197,-500.0,0.00024657,2]
[313599605,1707449436206,-500.0,0.00024657,2]
[313599606,1707449436215,-500.0,0.00024657,2]
[313599607,1707449436224,-492.10483398,0.00024657,2]
[313599608,1707449436234,-504.36057866,0.00024657,2]
[313599609,1707449436243,-315.28626144,0.00024657,2]
[313599610,1707449436252,-1423.98,0.00024657,2]
[313599611,1707449436262,-602.26864517,0.00024657,2]
[313599612,1707449436271,-500.0,0.00024657,2]
[313599613,1707449436280,-513.89390014,0.00024657,2]
[313599614,1707449436290,-535.43359813,0.00024657,2]
[313599615,1707449436299,-552.08818308,0.00024657,2]
[313599616,1707449436308,-500.0,0.00024657,2]
[313599617,1707449436318,-500.0,0.00024657,2]
[313599618,1707449436328,-520.74045274,0.00024657,2]
[313599619,1707449436338,-533.99102093,0.00024657,2]
[313599620,1707449436347,-500.0,0.00024657,2]
[313599621,1707449436357,-1000.0,0.00024657,2]
[313599622,1707449436368,-545.52434457,0.00024657,2]
[313599623,1707449436378,-1025.11,0.00024657,2]
[313599624,1707449436388,-540.94036495,0.00024657,2]
[313599625,1707449436397,-500.0,0.00024657,2]
[313599626,1707449436407,-500.0,0.00024657,2]
[313599627,1707449436417,-515.39939301,0.00024657,2]
[313599628,1707449436427,-523.08810568,0.00024657,2]
[313599629,1707449436436,-500.0,0.00024657,2]
[313599630,1707449436447,-500.0,0.00024657,2]
[313599631,1707449436456,-500.0,0.00024657,2]
[313599632,1707449436467,-500.0,0.00024657,2]
[313599633,1707449436477,-500.0,0.00024657,2]
[313599634,1707449436487,-516.71777437,0.00024657,2]
[313599635,1707449436497,-500.0,0.00024657,2]
[313599636,1707449436507,-200.97355804,0.00024657,2]
[313599637,1707449436517,-500.0,0.00024657,2]
[313599638,1707449436527,-345.502629,0.00024657,2]
[313599639,1707449436536,-345.502629,0.00024657,2]
[313599640,1707449436546,-345.502629,0.00024657,2]
[313599641,1707449436556,-345.502633,0.00024657,2]
[313599642,1707449436565,-500.0,0.00024657,2]
[313599643,1707449436575,-620.6,0.00024657,2]
[313599644,1707449436584,-516.19412427,0.00024657,2]
[313599645,1707449436635,-500.0,0.00024657,2]
[313599646,1707449436645,-514.72974953,0.00024657,2]
[313599647,1707449436655,-515.33362075,0.00024657,2]
[313599648,1707449436665,-500.0,0.00024657,2]
[313599649,1707449436676,-500.0,0.00024657,2]
[313599650,1707449436686,-500.0,0.00024657,2]
[313599651,1707449436696,-507.32905663,0.00024657,2]
[313599652,1707449436706,-500.0,0.00024657,2]
[313599653,1707449436716,-500.0,0.00024657,2]
[313599654,1707449436725,-500.0,0.00024657,2]
[313599655,1707449436735,-500.0,0.00024657,2]
[313599656,1707449436745,-6261.51,0.00024657,2]
[313599657,1707449436755,-392.72096901,0.00024657,2]
[313599658,1707449436764,-500.0,0.00024657,2]
[313599659,1707449436774,-581.03170627,0.00024657,2]